lending/lending_fUSD_20240206
["ID","MTS","AMOUNT","RATE_DAILY","PERIOD"]
[313381229,1707247846790,-180.0,0.00031644,2]
[313381230,1707247846799,-16690.2310689,0.000318,3]
[313381231,1707247846809,-150.0,0.00031867,2]
[313381232,1707247846819,-14554.12946314,0.00031991,3]
[313381233,1707247846828,-150.0,0.00032444,2]
[313381234,1707247846838,-168.15,0.00032836,2]
[313381235,1707247846847,-200.0,0.00032855,3]
[313381236,1707247846857,-550.0,0.00033,3]
[313381237,1707247846867,-150.0,0.00033021,2]
[313381238,1707247846877,-1000.0,0.00033151,120]
[313381239,1707247846886,-299.57,0.00033539,2]
[313381240,1707247846896,-150.0,0.00033598,2]
[313381241,1707247846906,-7999.99,0.00033809,14]
[313381242,1707247846916,-14554.12946314,0.00033809,6]
[313381243,1707247846926,-152.45628935,0.000339,2]
[313381244,1707247846936,-152.45628928,0.000339,2]
[313381245,1707247846946,-152.45628928,0.000339,2]
[313381246,1707247846955,-152.45628928,0.000339,2]
[313381247,1707247846965,-150.0,0.00034175,2]
[313381248,1707247846978,-150.0,0.00034751,2]
[313381249,1707247846987,-505.66837036,0.000349,2]
[313381250,1707247846997,-505.66837036,0.000349,2]
[313381251,1707247847007,-505.66837036,0.000349,2]
[313381252,1707247847018,-505.66837036,0.000349,2]
[313381253,1707247847027,-505.66837036,0.000349,2]
[313381254,1707247847140,-150.0,0.00034999,2]
[313381255,1707247847152,-150.0,0.00034999,2]
[313381256,1707247847162,-178.41510956,0.00035,2]
[313381257,1707247847171,-155.0,0.00035,2]
[313381258,1707247847180,-15776.97113927,0.00035,7]
[313381259,1707247847189,-16615.97067457,0.00035,2]
[313381260,1707247847199,-16615.97067457,0.00035,2]
[313381261,1707247847208,-600.0,0.00035,3]
[313381262,1707247847218,-480.0,0.00035256,2]
[313381263,1707247847228,-520.0,0.00035256,2]
[313381264,1707247847237,-150.0,0.00035328,2]
[313381265,1707247847246,-3768.81,0.00035616,2]
[313381266,1707247847255,-1440.0,0.00035616,2]
[313381267,1707247847265,-14554.12946314,0.00035627,8]
[313381268,1707247847275,-299.57,0.00035802,2]
[313381269,1707247847284,-150.0,0.00035905,2]
[313381270,1707247847293,-200.0,0.00036201,3]
[313381271,1707247847303,-4684.64,0.00036261,2]
[313381272,1707247847312,-306.89,0.00036261,30]
[313381273,1707247847322,-2106.38139839,0.00036301,30]
[313381274,1707247847331,-150.0,0.00036482,2]
[313381275,1707247847340,-505.66837036,0.00036536,2]
[313381276,1707247847350,-1440.0,0.00036934,2]
[313381277,1707247847359,-204.0,0.00036973,2]
[313381278,1707247847369,-204.0,0.00036973,2]
[313381279,1707247847378,-650.0,0.00037,3]
[313381280,1707247847388,-150.0,0.00037059,2]
[313381281,1707247847397,-152.45628928,0.0003725,2]
[313381282,1707247847406,-1000.0,0.000373,2]
[313381283,1707247847415,-14554.12946314,0.00037445,10]
[313381284,1707247847425,-150.0,0.00037635,2]
[313381285,1707247847434,-204.0,0.00037692,3]
[313381286,1707247847444,-639307.564332,0.000379,3]
[313381287,1707247847453,-299.57,0.00038066,2]
[313381288,1707247847463,-500.0,0.000382,14]
[313381289,1707247847473,-150.0,0.00038212,2]
[313381290,1707247847482,-1440.0,0.00038252,2]
[313381291,1707247847491,-150.0,0.00038356,2]
[313381292,1707247847501,-300.0,0.00038356,7]
[313381293,1707247847510,-300.0,0.00038356,12]
[313381294,1707247847520,-150.08,0.00038356,2]
[313381295,1707247847530,-204.0,0.00038412,5]
[313381296,1707247847539,-8142.0,0.00038613,2]
[313381297,1707247847548,-988.123,0.00038613,2]
[313381298,1707247847557,-747.189,0.00038613,2]
[313381299,1707247847567,-755.937,0.00038613,2]
[313381300,1707247847577,-150.0,0.00038789,2]
[313381301,1707247847586,-1848.31190976,0.0003888,2]
[313381302,1707247847596,-1848.3119097,0.0003888,2]
[313381303,1707247847606,-1848.3119097,0.0003888,2]
[313381304,1707247847615,-1848.3119097,0.0003888,2]
[313381305,1707247847624,-1848.3119097,0.0003888,2]
[313381306,1707247847634,-1848.3119097,0.0003888,2]
[313381307,1707247847643,-242.27555191,0.0003898,2]
[313381308,1707247847653,-1434.10743003,0.00039,2]
[313381309,1707247847662,-700.0,0.00039,3]
[313381310,1707247847672,-204.0,0.00039131,7]
[313381311,1707247847683,-480.0,0.00039173,2]
[313381312,1707247847692,-520.0,0.00039173,2]
[313381313,1707247847702,-500.0,0.000392,14]
[313381314,1707247847712,-197.42,0.0003926,2]
[313381315,1707247847721,-5474.70991755,0.00039264,12]
[313381316,1707247847740,-542.96175472,0.00039264,12]
[313381317,1707247847753,-652.22971811,0.00039264,12]
[313381318,1707247848651,-2369.50468564,0.00039264,12]
[313381319,1707247848663,-549.39783028,0.00039264,12]
[313381320,1707247848676,-1340.29480856,0.00039264,12]
[313381321,1707248024234,214.6075638,0.00020606,5]
[313381322,1707248066474,3202.05110341,0.0002198,2]
[313381323,1707248096657,250.0,0.00022279,2]
[313381324,1707248100168,176.99,0.00021999,2]
[313381325,1707248106578,792.0,0.00022069,2]
[313381326,1707248117900,250.0,0.00022138,2]
[313381327,1707248119899,150.0,0.00022138,2]
[313381328,1707248143582,200.0,0.00022138,2]
[313381329,1707248146331,23900.0,0.00022138,2]
[313381330,1707248158976,374.59,0.00022414,2]
[313381331,1707248164213,368.337341,0.00022393,2]
[313381332,1707248219237,186.04,0.00022201,10]
[313381334,1707248239295,155.0,0.00022503,2]
[313381335,1707248251388,155.0,0.00022503,2]
[313381336,1707248252405,155.0,0.00022503,2]
[313381337,1707248449430,-172.57719983,0.00022546,2]
[313381338,1707248449458,-155.0,0.00022546,2]
[313381339,1707248449486,-176.99,0.00022547,2]
[313381340,1707248449515,-2000.0,0.00022623,2]
[313381341,1707248449543,-482.18037315,0.00022769,2]
[313381342,1707248449573,-300.0,0.00022797,2]
[313381343,1707248449717,-150.0,0.00022797,2]
[313381344,1707248449744,-200.6536,0.00022798,2]
[313381345,1707248449770,-2925.2538,0.00022798,2]
[313381346,1707248449798,-877.46650444,0.00022798,2]
[313381347,1707248449825,-167.61944862,0.00022798,2]
[313381348,1707248449853,-210.9070723,0.00022798,2]
[313381349,1707248449880,-440.39205738,0.00022798,2]
[313381350,1707248449907,-741.4598,0.00022799,2]
[313381351,1707248449935,-26682.43535031,0.00022887,2]
[313381352,1707248449963,-154.50504922,0.00022888,2]
[313381353,1707248449994,-169.59029835,0.00022896,2]
[313381354,1707248450021,-375.26282183,0.00022896,2]
[313381355,1707248450050,-732.24320919,0.00022896,2]
[313381356,1707248450078,-267.28138141,0.00022896,2]
[313381357,1707248450106,-155.0,0.00022896,2]
[313381358,1707248450133,-287.64853068,0.00022896,2]
[313381359,1707248450163,-623.18,0.00022896,2]
[313381360,1707248450190,-150.99,0.00022896,2]
[313381361,1707248450218,-1578.72,0.00022896,2]
[313381362,1707248450246,-500.0,0.00022897,2]
[313381363,1707248450276,-387.6816417,0.00022897,2]
[313381364,1707248450304,-500.0,0.00022897,2]
[313381365,1707248450333,-500.0,0.00022897,2]
[313381366,1707248450362,-500.0,0.00022897,2]
[313381367,1707248450389,-500.0,0.00022897,2]
[313381368,1707248450416,-436.53103251,0.00022897,2]
[313381369,1707248450445,-24638.43082908,0.00022897,2]
[313381370,1707248592395,23869.22,0.00022205,2]
[313381371,1707248616022,200.0,0.00021952,2]
[313381372,1707248626859,366.4,0.00021927,2]
[313381373,1707248709378,250.0,0.00021891,2]
[313381374,1707248715776,176.99,0.00021898,2]
[313381375,1707248717120,306.07407965,0.00022446,2]
[313381376,1707248732098,479.25,0.00021891,2]
[313381377,1707248820245,150.0,0.00021891,2]
[313381378,1707248891158,150.0,0.00021905,2]
[313381379,1707248972121,-234.81641343,0.00022612,2]
[313381380,1707248972143,-158.24536701,0.00022698,2]
[313381381,1707248972164,-158.24536701,0.00022712,2]
[313381382,1707248972185,-250.0,0.00022717,2]
[313381383,1707248972206,-158.24536701,0.00022727,2]
[313381384,1707248972225,-158.24536701,0.00022741,2]
[313381385,1707248972245,-158.24536701,0.00022755,2]
[313381386,1707248972265,-158.24536701,0.0002277,2]
[313381387,1707248972284,-158.24536701,0.00022784,2]
[313381388,1707248972306,-406.66784514,0.00022797,2]
[313381389,1707248972325,-17433.6993,0.00022798,2]
[313381390,1707248972346,-3501.30424641,0.00022798,2]
[313381391,1707248972365,-210.9070723,0.00022798,2]
[313381392,1707248972387,-882.72296722,0.00022798,2]
[313381393,1707248972406,-19660.0858201,0.00022798,2]
[313381394,1707248973464,1023.34,0.00021893,2]
[313381395,1707248989203,170.87,0.00022261,2]
[313381396,1707248998237,250.0,0.00022194,2]
[313381401,1707249032136,-2123.00412,0.00022798,2]
[313381402,1707249032190,-1301.3000002,0.00022798,2]
[313381403,1707249032202,-30199.4100597,0.00022798,2]
[313381404,1707249032211,-529.53549414,0.00022798,2]
[313381405,1707249032220,-158.24536701,0.00022799,2]
[313381406,1707249032230,-158.24536701,0.00022813,2]
[313381407,1707249032239,-158.24536701,0.00022827,2]
[313381408,1707249032249,-158.24536701,0.00022842,2]
[313381409,1707249032259,-158.24536701,0.00022856,2]
[313381410,1707249032268,-158.24536701,0.0002287,2]
[313381411,1707249032278,-158.24536701,0.00022885,2]
[313381412,1707249032287,-154.50504922,0.00022888,2]
[313381413,1707249032296,-318.96336537,0.00022895,2]
[313381414,1707249032306,-202.26479886,0.00022896,2]
[313381415,1707249032319,-155.0,0.00022896,2]
[313381416,1707249032329,-294.56571198,0.00022897,7]
[313381417,1707249032339,-701744.9296675,0.00022898,2]
[313381418,1707249032353,-214784.45325876,0.00022898,2]
[313381419,1707249032365,-4324.98764311,0.00022898,2]
[313381420,1707249032377,-250.0,0.00022898,2]
[313381421,1707249032389,-588.48627133,0.00022898,2]
[313381422,1707249032404,-1502.28437207,0.00022898,2]
[313381423,1707249032416,-662.815,0.00022898,2]
[313381452,1707249039037,-1576.10650313,0.00022898,2]
[313381453,1707249039326,-3654.2472642,0.00022898,2]
[313381454,1707249039338,-402.12299413,0.00022898,2]
[313381455,1707249039350,-5797.71,0.00022898,2]
[313381456,1707249039376,-3100.0,0.00022898,2]
[313381457,1707249039391,-14962.5,0.00022898,2]
[313381458,1707249039403,-30239.3,0.00022898,2]
[313381459,1707249039422,-451.57864314,0.00022898,2]
[313381486,1707249040742,-1501.00137,0.00022898,2]
[313381487,1707249040800,-501.41626129,0.00022898,2]
[313381488,1707249040811,-835.95418073,0.00022898,2]
[313381489,1707249040822,-2396.42052,0.00022898,2]
[313381490,1707249040858,-316.87153115,0.00022898,2]
[313381491,1707249040923,-4239.53500256,0.00022898,2]
[313381492,1707249040975,-2989.43790858,0.00022898,2]
[313381493,1707249041686,-20061.53303712,0.00022898,2]
[313381529,1707249043333,-1633.78590968,0.00022898,2]
[313381531,1707249043345,-1593.33778619,0.00022898,2]
[313381532,1707249043356,-854.07188923,0.00022898,2]
[313381536,1707249043395,-810.85062043,0.00022898,2]
[313381542,1707249043451,-1223.34715648,0.00022898,2]
[313381543,1707249043509,-662.71312254,0.00022898,2]
[313381581,1707249046238,-415.90201326,0.00022898,2]
[313381585,1707249046332,-0.0194195,0.00022898,2]
[313381586,1707249046354,-36909.80834897,0.00022898,2]
[313381587,1707249046365,-15649.7963,0.00022898,2]
[313381588,1707249046374,-64553.4143,0.00022898,2]
[313381589,1707249046383,-2717.7911,0.00022898,2]
[313381590,1707249046392,-14026.6434,0.00022899,2]
[313381591,1707249046402,-6521.75045786,0.00022899,2]
[313381592,1707249046414,-325.4120935,0.00022899,2]
[313381594,1707249047653,-2392.3790065,0.00022899,2]
[313381595,1707249081030,352.98,0.00021481,2]
[313381596,1707249143458,-1376.92001607,0.00022694,2]
[313381597,1707249143486,-155.0,0.00022694,2]
[313381598,1707249143518,-155.0,0.00022695,2]
[313381599,1707249143548,-155.0,0.00022696,2]
[313381600,1707249143571,-158.07998393,0.00022697,2]
[313381601,1707249144369,-548.80001607,0.00022697,2]
[313381602,1707249144399,-1451.19998393,0.00022798,2]
[313381603,1707249144764,-2000.0,0.00022798,2]
[313381604,1707249145112,-2000.0,0.00022798,2]
[313381605,1707249145482,-2000.0,0.00022798,2]
[313381606,1707249145608,250.0,0.00022183,2]
[313381607,1707249145822,-2000.0,0.00022798,2]
[313381608,1707249146221,-2000.0,0.00022798,2]
[313381609,1707249146707,-2000.0,0.00022798,2]
[313381610,1707249146869,-2000.0,0.00022798,2]
[313381611,1707249147324,-1516.32531607,0.00022798,2]
[313381612,1707249147343,-174.41982976,0.00022896,2]
[313381613,1707249147367,-155.00009738,0.00022896,2]
[313381614,1707249147387,-154.25475679,0.00022896,2]
[313381615,1707249147769,-0.74524321,0.00022896,2]
[313381616,1707249153535,1999.25475679,0.00021481,2]
[313381617,1707249153555,2000.0,0.00021481,2]
[313381618,1707249153575,2000.0,0.00021481,2]
[313381619,1707249153597,2000.0,0.00021481,2]
[313381620,1707249153617,2000.0,0.00021481,2]
[313381621,1707249153637,2000.0,0.00021481,2]
[313381622,1707249153657,53.46744605,0.00021481,2]
[313381623,1707249157114,201.0465775,0.00022896,2]
[313381624,1707249157615,1003.93,0.00022428,2]
[313381625,1707249159451,248.84026083,0.00022896,2]
[313381626,1707249159520,158.50706686,0.00022896,2]
[313381627,1707249169533,334.20864876,0.00021481,2]
[313381628,1707249169554,2000.0,0.00021481,2]
[313381629,1707249169574,2000.0,0.00021481,2]
[313381630,1707249169593,2000.0,0.00021481,2]
[313381631,1707249169613,552.54558711,0.00021481,2]
[313381632,1707249177603,400.0,0.00022896,2]
[313381633,1707249180602,302.79374032,0.00022896,2]
[313381634,1707249182319,529.53549413,0.00022799,2]
[313381635,1707249218654,215.12517844,0.00022896,2]
[313381636,1707249218675,359.71553625,0.00022896,2]
[313381637,1707249220865,1640.28446375,0.00022896,2]
[313381638,1707249220886,385.57510974,0.00022896,2]
[313381639,1707249221978,509.28204749,0.00022667,2]
[313381640,1707249227125,155.0,0.00022896,2]
[313381641,1707249228917,950.14284277,0.00022895,2]
[313381642,1707249228940,2000.0,0.00022895,2]
[313381643,1707249228962,2000.0,0.00022895,2]
[313381644,1707249228984,1442.48868527,0.00022895,2]
[313381645,1707249229235,557.51131473,0.00022896,2]
[313381646,1707249229257,667.66831098,0.00022896,2]
[313381647,1707249230242,1224.6869,0.00022798,2]
[313381648,1707249230419,107.64478902,0.00022896,2]
[313381649,1707249230443,47.35521098,0.00022896,2]
[313381650,1707249232076,177.39763289,0.00022896,2]
[313381651,1707249235566,493.86713781,0.00022895,2]
[313381652,1707249236257,280.62654486,0.00022895,2]
[313381653,1707249236897,1000.75347346,0.00022896,2]
[313381654,1707249236917,1024.50198833,0.00022896,2]
[313381655,1707249238710,185.5600203,0.00022896,2]
[313381656,1707249239229,789.93799137,0.00022896,2]
[313381657,1707249239388,251.16026982,0.00022896,2]
[313381658,1707249241553,300.0,0.00022895,2]
[313381659,1707249241730,150.0,0.00022895,2]
[313381660,1707249242362,518.92130967,0.00022895,2]
[313381661,1707249247531,779.91842051,0.0002,2]
[313381662,1707249247553,220.08157949,0.0002,2]
[313381663,1707249248882,180.59398537,0.00022896,2]
[313381664,1707249254272,285.05108698,0.00022896,2]
[313381665,1707249255528,327.41955808,0.00022896,2]
[313381666,1707249257088,986.85379008,0.00022798,2]
[313381667,1707249257111,228.39495394,0.00022798,2]
[313381668,1707249257928,518.00723747,0.00022896,2]
[313381669,1707249259062,1041.09826119,0.00022896,2]
[313381670,1707249262827,212.4995474,0.0002267,2]
[313381671,1707249286605,-2000.0,0.0002267,2]
[313381672,1707249287192,-2000.0,0.0002267,2]
[313381673,1707249287734,-2000.0,0.0002267,2]
[313381674,1707249288301,-2000.0,0.0002267,2]
[313381675,1707249288861,-2000.0,0.0002267,2]
[313381676,1707249296181,-2000.0,0.0002267,2]
[313381677,1707249296887,-77.5004526,0.0002267,2]
[313381678,1707249296908,-1703.58281182,0.0002267,2]
[313381679,1707249296931,-218.91673558,0.0002286,2]
[313381680,1707249297067,-310.61875855,0.0002286,2]
[313381681,1707249297089,-155.0,0.00022896,2]
[313381682,1707249297112,-1041.09826119,0.00022896,2]
[313381683,1707249297134,-493.28298026,0.00022896,5]
[313381684,1707249307428,-590.45,0.00022798,2]
[313381685,1707249307450,-1409.55,0.00022896,5]
[313381686,1707249307946,-2000.0,0.00022896,5]
[313381687,1707249308581,-2000.0,0.00022896,5]
[313381688,1707249359426,150.0,0.00022196,2]
[313381689,1707249359557,150.0,0.00022,2]
[313381690,1707249362442,-2575.3,0.00022669,2]
[313381691,1707249448906,219.69,0.00022085,2]
[313381692,1707249464170,182.37,0.00022059,2]
[313381693,1707249485410,3544.8,0.00022049,2]
[313381694,1707249500012,200.0,0.00022049,2]
[313381695,1707249512583,887.56664496,0.00022049,2]
[313381696,1707249519994,154.35,0.0002225,2]
[313381697,1707249520201,154.35,0.00022394,2]
[313381698,1707249521826,434.49,0.00022084,2]
[313381699,1707249528273,155.0,0.00022049,2]
[313381700,1707249528560,887.56664496,0.00022049,2]
[313381701,1707249533497,9448.05668,0.00022425,2]
[313381702,1707249546262,155.0,0.00022049,2]
[313381703,1707249548564,887.56664496,0.00022049,2]
[313381704,1707249566579,887.56664496,0.00022049,2]
[313381705,1707249567202,250.0,0.00021958,2]
[313381706,1707249584559,887.56664496,0.00022049,2]
[313381707,1707249604570,887.56664496,0.00022049,2]
[313381708,1707249622564,887.56664496,0.00022049,2]
[313381709,1707249640569,887.56664496,0.00022049,2]
[313381710,1707249660584,887.56664496,0.00022049,2]
[313381711,1707249672242,555.46,0.00020036,2]
[313381712,1707249672460,555.46,0.000223,2]
[313381713,1707249678586,751.32092541,0.00022049,2]
[313381714,1707249711679,250.0,0.00022,2]
[313381715,1707249712825,250.0,0.00022274,2]
[313381716,1707249722099,1184.89,0.00021949,2]
[313381717,1707249771687,298.0,0.00021947,3]
[313381718,1707249829808,1892.21,0.00021943,2]
[313381719,1707249860798,3134.76429599,0.00021809,2]
[313381720,1707249868525,150.0,0.00022,2]
[313381721,1707249868594,2128.65003041,0.00022268,2]
[313381722,1707249878763,3138.70124231,0.00021809,2]
[313381723,1707249882933,300.0,0.000224,8]
[313381724,1707249885045,700.0,0.000225,8]
[313381725,1707249894811,150.0,0.00022,2]
[313381726,1707249910280,165.66195847,0.00022438,2]
[313381727,1707249914384,169.05,0.00021874,2]
[313381728,1707249927393,200.0,0.00021886,2]
[313381729,1707249928683,1010.0,0.00021886,2]
[313381730,1707249928769,263.3506829,0.00021714,2]
[313381731,1707249940891,258.03,0.00022,2]
[313381732,1707249965559,501.52,0.00021868,2]
[313381733,1707249994778,250.0,0.00021853,2]
[313381734,1707250022766,300.0,0.000224,8]
[313381735,1707250024995,600.0,0.000225,8]
[313381736,1707250031830,836.6,0.00021795,2]
[313381737,1707250089171,25443.63,0.00021792,2]
[313381738,1707250103403,150.0,0.00022,2]
[313381739,1707250127666,515.37,0.00019876,2]
[313381740,1707250128049,515.37,0.0002214,2]
[313381741,1707250133996,171.03,0.00021794,2]
[313381742,1707250153694,179.5828,0.00022432,2]
[313381743,1707250159593,153.82,0.00021957,2]
[313381744,1707250159812,153.82,0.00022025,2]
[313381745,1707250160028,153.82,0.00022092,2]
[313381746,1707250160440,153.82,0.00022159,2]
[313381747,1707250160669,153.82,0.00022227,2]
[313381748,1707250160909,153.82,0.00022294,2]
[313381749,1707250161099,153.82,0.00022361,2]
[313381750,1707250161319,153.82,0.00022429,2]
[313381751,1707250161530,153.82,0.00022496,2]
[313381752,1707250183972,170.23,0.00017409,2]
[313381825,1707250233598,-286.49170438,0.00022511,2]
[313381826,1707250233608,-1092.0,0.00022511,2]
[313381827,1707250233618,-355.87983929,0.00022512,2]
[313381828,1707250233628,-155.0,0.00022512,2]
[313381829,1707250233638,-111.58379634,0.00022512,2]
[313381830,1707250233652,-119.62603522,0.00022512,2]
[313381831,1707250233661,-266.52049227,0.00022513,2]
[313381832,1707250233673,-155.0,0.00022513,2]
[313381833,1707250233682,-5092.18221485,0.00022513,2]
[313381834,1707250233699,-17608.53757783,0.00022513,2]
[313381835,1707250233708,-283.92894102,0.00022514,2]
[313381836,1707250233719,-4587.89451303,0.00022514,2]
[313381837,1707250233729,-10537.74486602,0.00022518,2]
[313381838,1707250233738,-794.29678368,0.00022519,2]
[313381839,1707250233749,-150.0,0.00022519,2]
[313381840,1707250233758,-150.0,0.00022519,2]
[313381841,1707250233769,-2605.00002384,0.00022522,2]
[313381842,1707250233778,-7062.71763869,0.00022534,2]
[313381844,1707250233787,-858.0,0.00022534,2]
[313381846,1707250233795,-362.58864827,0.00022548,2]
[313381848,1707250233804,-457.63,0.00022548,2]
[313381850,1707250233813,-933.03,0.00022548,2]
[313381852,1707250233822,-150.0,0.00022556,2]
[313381853,1707250233832,-416.38,0.00022556,2]
[313381854,1707250233842,-153.82,0.00022563,2]
[313381856,1707250233852,-900.0,0.000226,8]
[313381858,1707250233862,-166.35448859,0.00022627,2]
[313381860,1707250233871,-153.82,0.00022631,2]
[313381862,1707250233881,-153.82,0.00022698,2]
[313381864,1707250233891,-1200.0,0.000227,8]
[313381866,1707250233900,-2575.3,0.00022727,2]
[313381868,1707250233910,-1063.342651,0.00022758,2]
[313381870,1707250233921,-166.35448857,0.00022764,2]
[313381872,1707250233931,-153.82,0.00022765,2]
[313381874,1707250233940,-186.7671004,0.00022774,2]
[313381876,1707250233951,-1500.0,0.000228,8]
[313381878,1707250233960,-153.82,0.00022832,2]
[313381880,1707250233970,-174.46028381,0.00022848,2]
[313381882,1707250233979,-1415.27636351,0.00022857,2]
[313381884,1707250233988,-155.0,0.00022857,2]
[313381886,1707250233998,-518.92130967,0.00022857,2]
[313381888,1707250234007,-5691.04211674,0.00022857,2]
[313381890,1707250234016,-306.97180835,0.00022857,2]
[313381892,1707250234025,-526.0941245,0.00022858,2]
[313381894,1707250234035,-1833.17502045,0.00022858,2]
[313381896,1707250234045,-603114.79409398,0.00022858,2]
[313381898,1707250234057,-230908.35555511,0.00022858,2]
[313381900,1707250234067,-500.0,0.00022858,2]
[313381901,1707250234077,-500.0,0.00022858,2]
[313381902,1707250234086,-253.6322494,0.00022858,2]
[313381903,1707250234218,-3226.2056,0.00022859,2]
[313381904,1707250234235,-14665.5938,0.00022859,2]
[313381905,1707250234244,-1576.5948,0.00022859,2]
[313381906,1707250234254,-450.7539,0.00022859,2]
[313381907,1707250234263,-499.9974,0.00022859,2]
[313381908,1707250234273,-204343.3741,0.00022859,2]
[313381909,1707250234282,-5727.01681928,0.00022874,2]
[313381910,1707250234291,-1274.52043198,0.00022896,5]
[313381911,1707250234300,-499.99,0.00022896,2]
[313381912,1707250234309,-4570.97098431,0.00022896,2]
[313381913,1707250234319,-155.0,0.00022897,2]
[313381914,1707250234328,-155.0,0.00022897,2]
[313381915,1707250234337,-159.09532459,0.00022897,2]
[313381916,1707250234346,-155.44252608,0.00022897,2]
[313381917,1707250234355,-268.96634037,0.00022897,2]
[313381918,1707250234364,-341.0495753,0.00022897,2]
[313381919,1707250234373,-155.0,0.00022897,2]
[313381920,1707250234382,-232.92375042,0.00022897,2]
[313381921,1707250234391,-168.61937043,0.00022897,2]
[313381922,1707250234400,-214.47464455,0.00022897,2]
[313381923,1707250234409,-157.11465594,0.00022897,2]
[313381924,1707250234418,-5000.0,0.00022899,2]
[313381925,1707250234427,-1999.9999999,0.00022899,2]
[313381926,1707250234435,-200.0,0.00022899,2]
[313381927,1707250234444,-192.64750663,0.00022899,2]
[313381928,1707250234456,-177.17930462,0.00022899,2]
[313381929,1707250234465,-205.11348414,0.00022899,4]
[313381930,1707250234474,-390.41526854,0.00022899,2]
[313381931,1707250234483,-2321.70416572,0.00022899,2]
[313381932,1707250234492,-153.82,0.000229,2]
[313381933,1707250234501,-166.35448857,0.000229,2]
[313381934,1707250234510,-1000.0,0.000229,2]
[313381935,1707250234519,-300.0,0.000229,8]
[313381936,1707250234528,-167.0,0.00022952,2]
[313381937,1707250234537,-534.13363385,0.00022957,2]
[313381938,1707250234546,-24323.66299118,0.00022957,2]
[313381939,1707250234555,-1042.87468499,0.00022957,2]
[313381940,1707250234564,-118212.52860902,0.0002296,2]
[313381941,1707250234573,-153.82,0.00022967,2]
[313381942,1707250234583,-169.05,0.00022968,2]
[313381943,1707250234591,-285.43770353,0.00022971,3]
[313381944,1707250234601,-171768.69669454,0.00022971,2]
[313381945,1707250234610,-4244.0,0.00022986,2]
[313381946,1707250234619,-174.46028381,0.0002299,2]
[313381947,1707250234628,-171.7777838,0.00022997,2]
[313381948,1707250234637,-155.60727124,0.00022997,2]
[313381949,1707250234648,-368.55900548,0.00022997,2]
[313381950,1707250234657,-155.0,0.00022997,2]
[313381951,1707250234666,-582.84742818,0.00022997,2]
[313381952,1707250234678,-939.25271979,0.00022997,2]
[313381953,1707250234688,-245.26780635,0.00022997,2]
[313381954,1707250234696,-218.2736471,0.00022997,2]
[313381955,1707250234707,-176.55976016,0.00022997,2]
[313381956,1707250234717,-199.52500903,0.00022997,2]
[313381957,1707250234727,-236.84590808,0.00022997,2]
[313381958,1707250234736,-186.57838311,0.00022997,2]
[313381959,1707250234746,-209.80433124,0.00022997,2]
[313381960,1707250234756,-307.92692644,0.00022997,2]
[313381961,1707250234765,-695.69995506,0.00022997,2]
[313381962,1707250234774,-306.11469835,0.00022997,2]
[313381963,1707250234783,-2333.67061225,0.00022997,4]
[313381964,1707250234793,-418.21791161,0.00022997,2]
[313381965,1707250234803,-158.8409691,0.00022998,2]
[313381966,1707250234813,-235.92440878,0.00022998,2]
[313381967,1707250234823,-10046.08618658,0.00022998,2]
[313381968,1707250234832,-199.23214259,0.00022999,2]
[313381969,1707250234843,-249.31789031,0.00022999,2]
[313381970,1707250234853,-342.43426424,0.00022999,2]
[313381971,1707250234862,-183.76027275,0.00022999,2]
[313381972,1707250234872,-1047.8521078,0.00022999,2]